[Event "Fast Chess"]
[Site "ChessKid.com"]
[Date "2020.04.03"]
[Round "3"]
[White "Sasse, Gabriel"]
[Black "Halimi, Dorian"]
[Result "1-0"]
[ECO "C42"]
[WhiteElo "1208"]
[BlackElo "978"]
[PlyCount "175"]
[EventDate "2020.??.??"]
[TimeControl "600"]
[WhiteClock "0:02:35"]
[BlackClock "0:04:20"]

1. e4 {[%emt 0:00:00]} e5 {[%emt 0:00:04]} 2. Nf3 {[%emt 0:00:01]} Nf6 {
[%emt 0:00:05]} 3. Bc4 {[%emt 0:00:01]} Bc5 {[%emt 0:00:04]} 4. Ng5 {[%emt 0:
00:02]} Kf8 {[%emt 0:00:10]} 5. Nxf7 {[%emt 0:00:06]} Qe8 {[%emt 0:00:05]} 6.
Nxh8 {[%emt 0:00:02]} Ng4 {[%emt 0:00:04]} 7. Qxg4 {[%emt 0:00:05]} Nc6 {
[%emt 0:00:07]} 8. Qf3+ {[%emt 0:00:02]} Ke7 {[%emt 0:00:08]} 9. Nf7 {[%emt 0:
00:03]} Nd4 {[%emt 0:00:06]} 10. Qd1 {[%emt 0:00:23]} b6 {[%emt 0:00:09]} 11.
Na3 {[%emt 0:00:02]} Bb7 {[%emt 0:00:04]} 12. Qh5 {[%emt 0:00:04]} Bxe4 {
[%emt 0:00:06]} 13. Qxe5+ {[%emt 0:00:08]} Kf8 {[%emt 0:00:04]} 14. Qxe8+ {
[%emt 0:00:16]} Kxe8 {[%emt 0:00:03]} 15. Ng5 {[%emt 0:00:03]} Bxg2 {[%emt 0:
00:04]} 16. Rg1 {[%emt 0:00:09]} Bc6 {[%emt 0:00:04]} 17. d3 {[%emt 0:00:03]}
a5 {[%emt 0:00:09]} 18. Be3 {[%emt 0:00:02]} Rb8 {[%emt 0:00:22]} 19. c3 {
[%emt 0:00:03]} Nf3+ {[%emt 0:00:14]} 20. Kf1 {[%emt 0:00:04]} Nxg1 {[%emt 0:
00:02]} 21. Bxc5 {[%emt 0:00:02]} bxc5 {[%emt 0:00:03]} 22. Kxg1 {[%emt 0:00:
01]} Rxb2 {[%emt 0:00:02]} 23. Re1+ {[%emt 0:00:05]} Kd8 {[%emt 0:00:17]} 24.
Nxh7 {[%emt 0:00:03]} d5 {[%emt 0:00:12]} 25. Bb3 {[%emt 0:00:06]} a4 {[%emt 0:
00:09]} 26. Bd1 {[%emt 0:00:07]} Rxa2 {[%emt 0:00:05]} 27. Nb1 {[%emt 0:00:05]}
a3 {[%emt 0:00:07]} 28. Nxa3 {[%emt 0:00:03]} Rxa3 {[%emt 0:00:02]} 29. c4 {
[%emt 0:00:04]} dxc4 {[%emt 0:00:04]} 30. dxc4 {[%emt 0:00:01]} Rc3 {[%emt 0:
00:03]} 31. Be2 {[%emt 0:00:09]} Rc2 {[%emt 0:00:18]} 32. Ng5 {[%emt 0:00:05]}
Rd2 {[%emt 0:00:15]} 33. Ne6+ {[%emt 0:00:03]} Kd7 {[%emt 0:00:05]} 34. Nxc5+ {
[%emt 0:00:02]} Kd6 {[%emt 0:00:04]} 35. Ne4+ {[%emt 0:00:01]} Bxe4 {[%emt 0:
00:03]} 36. Bf1 {[%emt 0:00:09]} Kd7 {[%emt 0:00:10]} 37. Rxe4 {[%emt 0:00:03]}
g5 {[%emt 0:00:07]} 38. Rg4 {[%emt 0:00:02]} c5 {[%emt 0:00:06]} 39. Rxg5 {
[%emt 0:00:02]} Rd6 {[%emt 0:00:04]} 40. Rxc5 {[%emt 0:00:02]} Rg6+ {[%emt 0:
00:02]} 41. Kh1 {[%emt 0:00:02]} Kd6 {[%emt 0:00:02]} 42. Rb5 {[%emt 0:00:07]}
Kc6 {[%emt 0:00:02]} 43. Ra5 {[%emt 0:00:02]} Kb6 {[%emt 0:00:02]} 44. Rh5 {
[%emt 0:00:02]} Rg7 {[%emt 0:00:04]} 45. c5+ {[%emt 0:00:02]} Kc6 {[%emt 0:00:
02]} 46. Rh6+ {[%emt 0:00:05]} Kxc5 {[%emt 0:00:05]} 47. Rf6 {[%emt 0:00:01]}
Kd5 {[%emt 0:00:02]} 48. h4 {[%emt 0:00:04]} Ke5 {[%emt 0:00:02]} 49. Rf3 {
[%emt 0:00:04]} Rh7 {[%emt 0:00:04]} 50. Kg2 {[%emt 0:00:09]} Rxh4 {[%emt 0:00:
03]} 51. Kg3 {[%emt 0:00:01]} Rh5 {[%emt 0:00:05]} 52. Be2 {[%emt 0:00:03]}
Rg5+ {[%emt 0:00:03]} 53. Kh3 {[%emt 0:00:02]} Ke4 {[%emt 0:00:03]} 54. Kh4 {
[%emt 0:00:03]} Rg1 {[%emt 0:00:06]} 55. Rf8 {[%emt 0:00:07]} Re1 {[%emt 0:00:
06]} 56. Bf3+ {[%emt 0:00:04]} Ke5 {[%emt 0:00:05]} 57. Kg5 {[%emt 0:00:05]}
Ke6 {[%emt 0:00:01]} 58. Bh5 {[%emt 0:00:04]} Ke7 {[%emt 0:00:02]} 59. Rf3 {
[%emt 0:00:02]} Re5+ {[%emt 0:00:03]} 60. Kg4 {[%emt 0:00:05]} Ke6 {[%emt 0:00:
02]} 61. Bf7+ {[%emt 0:00:05]} Ke7 {[%emt 0:00:04]} 62. Bg6 {[%emt 0:00:05]}
Ke6 {[%emt 0:00:04]} 63. Kf4 {[%emt 0:00:05]} Rd5 {[%emt 0:00:06]} 64. Re3+ {
[%emt 0:00:02]} Kf6 {[%emt 0:00:05]} 65. Ke4 {[%emt 0:00:05]} Re5+ {[%emt 0:00:
07]} 66. Kd4 {[%emt 0:00:02]} Ra5 {[%emt 0:00:07]} 67. Rg3 {[%emt 0:00:11]} Ke6
{[%emt 0:00:04]} 68. Rf3 {[%emt 0:00:04]} Rd5+ {[%emt 0:00:03]} 69. Ke4 {
[%emt 0:00:04]} Re5+ {[%emt 0:00:03]} 70. Kf4 {[%emt 0:00:02]} Kf6 {[%emt 0:00:
03]} 71. Rg3 {[%emt 0:00:12]} Rd5 {[%emt 0:00:06]} 72. Rd3 {[%emt 0:00:03]} Re5
{[%emt 0:00:04]} 73. Re3 {[%emt 0:00:04]} Rg5 {[%emt 0:00:03]} 74. Rf3 {
[%emt 0:00:07]} Kxg6 {[%emt 0:00:04]} 75. Rg3 {[%emt 0:00:02]} Rxg3 {[%emt 0:
00:16]} 76. fxg3 {[%emt 0:00:02]} Kh5 {[%emt 0:00:02]} 77. Kf5 {[%emt 0:00:02]}
Kh6 {[%emt 0:00:04]} 78. g4 {[%emt 0:00:01]} Kg7 {[%emt 0:00:03]} 79. g5 {
[%emt 0:00:01]} Kg8 {[%emt 0:00:01]} 80. Kf6 {[%emt 0:00:01]} Kf8 {[%emt 0:00:
02]} 81. g6 {[%emt 0:00:01]} Kg8 {[%emt 0:00:02]} 82. Kg5 {[%emt 0:00:02]} Kg7
{[%emt 0:00:01]} 83. Kf5 {[%emt 0:00:02]} Kh6 {[%emt 0:00:02]} 84. Kf6 {
[%emt 0:00:02]} Kh5 {[%emt 0:00:09]} 85. Kf7 {[%emt 0:00:02]} Kh6 {[%emt 0:00:
02]} 86. g7 {[%emt 0:00:03]} Kh7 {[%emt 0:00:02]} 87. g8=Q+ {[%emt 0:00:02]}
Kh6 {[%emt 0:00:02]} 88. Qg6# {[%emt 0:00:03] LimeFarActor won by checkmate}
1-0

[Event "Fast Chess"]
[Site "ChessKid.com"]
[Date "2020.04.03"]
[Round "3"]
[White "Donchev, Martin"]
[Black "Dai, Lana"]
[Result "0-1"]
[ECO "C20"]
[WhiteElo "911"]
[BlackElo "1218"]
[PlyCount "72"]
[EventDate "2020.??.??"]
[TimeControl "600"]
[WhiteClock "0:05:39"]
[BlackClock "0:05:23"]

1. e4 {[%emt 0:00:05]} e5 {[%emt 0:00:14]} 2. Bb5 {[%emt 0:00:00]} Nf6 {
[%emt 0:00:03]} 3. Nf3 {[%emt 0:00:19]} Bc5 {[%emt 0:00:04]} 4. Nxe5 {[%emt 0:
00:06]} Qe7 {[%emt 0:00:07]} 5. Nc4 {[%emt 0:00:05]} Nxe4 {[%emt 0:00:04]} 6.
f3 {[%emt 0:00:05]} Nc3+ {[%emt 0:00:04]} 7. Ne3 {[%emt 0:00:17]} Nxd1 {
[%emt 0:00:05]} 8. Kxd1 {[%emt 0:00:06]} Bxe3 {[%emt 0:00:03]} 9. dxe3 {
[%emt 0:00:03]} Qd6+ {[%emt 0:00:03]} 10. Ke2 {[%emt 0:00:07]} Nc6 {[%emt 0:00:
05]} 11. f4 {[%emt 0:00:08]} Qf6 {[%emt 0:00:08]} 12. Bd2 {[%emt 0:00:05]} d6 {
[%emt 0:00:03]} 13. Bb4 {[%emt 0:00:05]} Bg4+ {[%emt 0:00:04]} 14. Ke1 {
[%emt 0:00:14]} Qxb2 {[%emt 0:00:06]} 15. Nd2 {[%emt 0:00:06]} Qxc2 {[%emt 0:
00:19]} 16. Rd1 {[%emt 0:00:06]} Qxd1+ {[%emt 0:00:04]} 17. Kf2 {[%emt 0:00:06]
} Qxh1 {[%emt 0:00:02]} 18. h3 {[%emt 0:00:09]} Qc1 {[%emt 0:00:22]} 19. Nb3 {
[%emt 0:00:05]} Qc2+ {[%emt 0:00:04]} 20. Kg3 {[%emt 0:00:15]} Qxa2 {[%emt 0:
00:10]} 21. Nd4 {[%emt 0:00:06]} Qb2 {[%emt 0:00:18]} 22. Ne2 {[%emt 0:00:08]}
Qxb4 {[%emt 0:00:16]} 23. Bd3 {[%emt 0:00:07]} Qb3 {[%emt 0:00:08]} 24. Be4 {
[%emt 0:00:16]} Bxe2 {[%emt 0:00:06]} 25. h4 {[%emt 0:00:11]} Qxe3+ {[%emt 0:
00:08]} 26. Kh2 {[%emt 0:00:07]} Qxf4+ {[%emt 0:00:21]} 27. Kh3 {[%emt 0:00:07]
} Qg4+ {[%emt 0:00:03]} 28. Kh2 {[%emt 0:00:04]} Qxe4 {[%emt 0:00:04]} 29. Kg1
{[%emt 0:00:06]} Qe3+ {[%emt 0:00:03]} 30. Kh2 {[%emt 0:00:06]} Qf2 {[%emt 0:
00:06]} 31. h5 {[%emt 0:00:05]} Qh4+ {[%emt 0:00:09]} 32. Kg1 {[%emt 0:00:09]}
Nd4 {[%emt 0:00:08]} 33. g4 {[%emt 0:00:15]} Qe1+ {[%emt 0:00:05]} 34. Kh2 {
[%emt 0:00:08]} Nf3+ {[%emt 0:00:02]} 35. Kg2 {[%emt 0:00:04]} Qg1+ {[%emt 0:
00:08]} 36. Kh3 {[%emt 0:00:06]} Qh2# {[%emt 0:00:05] TopBrownCave won by
checkmate} 0-1

[Event "Fast Chess"]
[Site "ChessKid.com"]
[Date "2020.04.06"]
[Round "1"]
[White "Li, Tobias"]
[Black "Sasse, Gabriel"]
[Result "0-1"]
[ECO "C55"]
[WhiteElo "1209"]
[BlackElo "1279"]
[PlyCount "62"]
[EventDate "2020.??.??"]
[TimeControl "600"]
[WhiteClock "0:08:29"]
[BlackClock "0:08:10"]

1. e4 {[%emt 0:00:07]} e5 {[%emt 0:00:00]} 2. Nf3 {[%emt 0:00:02]} Nc6 {
[%emt 0:00:01]} 3. Nc3 {[%emt 0:00:01]} Bc5 {[%emt 0:00:01]} 4. Bc4 {[%emt 0:
00:01]} Nf6 {[%emt 0:00:01]} 5. Ng5 {[%emt 0:00:01]} O-O {[%emt 0:00:01]} 6.
O-O {[%emt 0:00:03]} h6 {[%emt 0:00:03]} 7. Nxf7 {[%emt 0:00:01]} Rxf7 {
[%emt 0:00:01]} 8. Bxf7+ {[%emt 0:00:01]} Kxf7 {[%emt 0:00:01]} 9. Re1 {
[%emt 0:00:01]} Nh7 {[%emt 0:00:09]} 10. d3 {[%emt 0:00:02]} Qf6 {[%emt 0:00:
02]} 11. Be3 {[%emt 0:00:08]} Bxe3 {[%emt 0:00:02]} 12. Rxe3 {[%emt 0:00:01]}
Qg6 {[%emt 0:00:05]} 13. Qf3+ {[%emt 0:00:02]} Kg8 {[%emt 0:00:03]} 14. Qg3 {
[%emt 0:00:04]} Qxg3 {[%emt 0:00:05]} 15. Rxg3 {[%emt 0:00:02]} Nd4 {[%emt 0:
00:02]} 16. Rc1 {[%emt 0:00:16]} Ne2+ {[%emt 0:00:03]} 17. Nxe2 {[%emt 0:00:03]
} d6 {[%emt 0:00:02]} 18. Nc3 {[%emt 0:00:02]} c6 {[%emt 0:00:05]} 19. b4 {
[%emt 0:00:03]} d5 {[%emt 0:00:01]} 20. exd5 {[%emt 0:00:04]} cxd5 {[%emt 0:00:
02]} 21. Nxd5 {[%emt 0:00:02]} Be6 {[%emt 0:00:03]} 22. Nc7 {[%emt 0:00:02]}
Rc8 {[%emt 0:00:12]} 23. Nxe6 {[%emt 0:00:02]} Re8 {[%emt 0:00:08]} 24. Rxg7+ {
[%emt 0:00:04]} Kh8 {[%emt 0:00:05]} 25. Rxb7 {[%emt 0:00:17]} Rxe6 {[%emt 0:
00:02]} 26. Rxa7 {[%emt 0:00:00]} Ng5 {[%emt 0:00:02]} 27. c4 {[%emt 0:00:07]}
e4 {[%emt 0:00:02]} 28. dxe4 {[%emt 0:00:03]} Nxe4 {[%emt 0:00:02]} 29. c5 {
[%emt 0:00:02]} Nd2 {[%emt 0:00:01]} 30. c6 {[%emt 0:00:03]} Nc4 {[%emt 0:00:
02]} 31. Rxc4 {[%emt 0:00:04]} Re1# {[%emt 0:00:02] LimeFarActor won by
checkmate} 0-1

[Event "Fast Chess"]
[Site "ChessKid.com"]
[Date "2020.04.06"]
[Round "1"]
[White "Dai, Lana"]
[Black "Hessenberger, Oliver"]
[Result "1-0"]
[ECO "C25"]
[WhiteElo "1226"]
[BlackElo "1078"]
[PlyCount "79"]
[EventDate "2020.??.??"]
[TimeControl "600"]
[WhiteClock "0:04:45"]
[BlackClock "0:04:48"]

1. e4 {[%emt 0:00:01]} e5 {[%emt 0:00:01]} 2. Nc3 {[%emt 0:00:02]} Nc6 {
[%emt 0:00:01]} 3. Bc4 {[%emt 0:00:02]} Bb4 {[%emt 0:00:04]} 4. Nd5 {[%emt 0:
00:08]} Nf6 {[%emt 0:00:10]} 5. Nxb4 {[%emt 0:00:03]} Nxe4 {[%emt 0:00:04]} 6.
Nxc6 {[%emt 0:00:12]} Qf6 {[%emt 0:00:23]} 7. Nf3 {[%emt 0:00:12]} dxc6 {
[%emt 0:00:05]} 8. d3 {[%emt 0:00:02]} Nc5 {[%emt 0:00:05]} 9. Bg5 {[%emt 0:00:
07]} Qg6 {[%emt 0:00:13]} 10. O-O {[%emt 0:00:23]} Bg4 {[%emt 0:00:02]} 11. Be3
{[%emt 0:00:16]} Ne6 {[%emt 0:00:31]} 12. h3 {[%emt 0:00:26]} Bh5 {[%emt 0:00:
10]} 13. Nh4 {[%emt 0:01:00]} Bxd1 {[%emt 0:00:43]} 14. Nxg6 {[%emt 0:00:04]}
fxg6 {[%emt 0:00:16]} 15. Raxd1 {[%emt 0:00:02]} Nc5 {[%emt 0:00:09]} 16. d4 {
[%emt 0:00:09]} Ne4 {[%emt 0:00:06]} 17. dxe5 {[%emt 0:00:05]} Nc5 {[%emt 0:00:
18]} 18. Bxc5 {[%emt 0:00:04]} Rd8 {[%emt 0:00:05]} 19. Rxd8+ {[%emt 0:00:19]}
Kxd8 {[%emt 0:00:03]} 20. e6 {[%emt 0:00:06]} Re8 {[%emt 0:00:04]} 21. Rd1+ {
[%emt 0:00:07]} Kc8 {[%emt 0:00:06]} 22. e7 {[%emt 0:00:02]} b5 {[%emt 0:00:04]
} 23. Be6+ {[%emt 0:00:07]} Kb7 {[%emt 0:00:05]} 24. Bd7 {[%emt 0:00:03]} Rb8 {
[%emt 0:00:11]} 25. e8=Q {[%emt 0:00:05]} Rxe8 {[%emt 0:00:22]} 26. Bxe8 {
[%emt 0:00:03]} Kc8 {[%emt 0:00:06]} 27. Bxa7 {[%emt 0:00:04]} Kb7 {[%emt 0:00:
03]} 28. Be3 {[%emt 0:00:02]} Ka6 {[%emt 0:00:02]} 29. f4 {[%emt 0:00:02]} Kb7
{[%emt 0:00:02]} 30. b4 {[%emt 0:00:01]} Kb8 {[%emt 0:00:10]} 31. g4 {[%emt 0:
00:04]} h5 {[%emt 0:00:04]} 32. gxh5 {[%emt 0:00:02]} gxh5 {[%emt 0:00:02]} 33.
f5 {[%emt 0:00:01]} c5 {[%emt 0:00:14]} 34. bxc5 {[%emt 0:00:03]} Kb7 {[%emt 0:
00:00]} 35. Rd7 {[%emt 0:00:12]} Kc6 {[%emt 0:00:00]} 36. Rxg7+ {[%emt 0:00:07]
} Kd5 {[%emt 0:00:06]} 37. f6 {[%emt 0:00:02]} Ke6 {[%emt 0:00:01]} 38. f7 {
[%emt 0:00:04]} Ke7 {[%emt 0:00:02]} 39. Bg5+ {[%emt 0:00:05]} Kf8 {[%emt 0:00:
04]} 40. Rg8# {[%emt 0:00:13] TopBrownCave won by checkmate} 1-0

[Event "Fast Chess"]
[Site "ChessKid.com"]
[Date "2020.04.06"]
[Round "2"]
[White "Li, Tobias"]
[Black "Dai, Lana"]
[Result "1-0"]
[ECO "C50"]
[WhiteElo "1220"]
[BlackElo "1217"]
[PlyCount "85"]
[EventDate "2020.??.??"]
[TimeControl "600"]
[WhiteClock "0:00:18"]
[BlackClock "0:03:39"]

1. e4 {[%emt 0:00:00]} e5 {[%emt 0:00:02]} 2. Nc3 {[%emt 0:00:02]} Nf6 {
[%emt 0:00:04]} 3. Nf3 {[%emt 0:00:01]} Nc6 {[%emt 0:00:10]} 4. Bc4 {[%emt 0:
00:02]} Bc5 {[%emt 0:00:04]} 5. O-O {[%emt 0:00:05]} d6 {[%emt 0:00:13]} 6. Ng5
{[%emt 0:00:01]} Be6 {[%emt 0:00:30]} 7. Bxe6 {[%emt 0:00:07]} fxe6 {[%emt 0:
00:01]} 8. Nxe6 {[%emt 0:00:01]} Qd7 {[%emt 0:00:05]} 9. Ng5 {[%emt 0:00:06]}
h6 {[%emt 0:00:21]} 10. Nf3 {[%emt 0:00:10]} Qg4 {[%emt 0:00:20]} 11. h3 {
[%emt 0:00:05]} Qd7 {[%emt 0:00:09]} 12. d3 {[%emt 0:00:08]} O-O {[%emt 0:00:
08]} 13. Bd2 {[%emt 0:00:24]} d5 {[%emt 0:00:32]} 14. a3 {[%emt 0:00:20]} dxe4
{[%emt 0:00:08]} 15. dxe4 {[%emt 0:00:02]} Nd4 {[%emt 0:00:38]} 16. Be3 {
[%emt 0:00:32]} Nxf3+ {[%emt 0:00:08]} 17. Qxf3 {[%emt 0:00:04]} Bxe3 {[%emt 0:
00:08]} 18. Qxe3 {[%emt 0:00:02]} Qe6 {[%emt 0:00:33]} 19. Rfd1 {[%emt 0:00:06]
} c6 {[%emt 0:00:26]} 20. Rd2 {[%emt 0:00:12]} b6 {[%emt 0:00:24]} 21. Ne2 {
[%emt 0:00:35]} c5 {[%emt 0:00:04]} 22. b4 {[%emt 0:00:09]} cxb4 {[%emt 0:00:
08]} 23. axb4 {[%emt 0:00:01]} Nh5 {[%emt 0:00:23]} 24. Ng3 {[%emt 0:00:25]}
Nf4 {[%emt 0:00:12]} 25. Ne2 {[%emt 0:00:10]} Qc4 {[%emt 0:00:29]} 26. Nxf4 {
[%emt 0:00:12]} exf4 {[%emt 0:00:05]} 27. Qf3 {[%emt 0:00:02]} Qxb4 {[%emt 0:
00:13]} 28. Rad1 {[%emt 0:00:04]} Qe7 {[%emt 0:00:30]} 29. Rd7 {[%emt 0:00:15]}
Qe6 {[%emt 0:00:11]} 30. R7d5 {[%emt 0:00:06]} Rac8 {[%emt 0:00:22]} 31. R1d2 {
[%emt 0:00:15]} Qe7 {[%emt 0:00:09]} 32. Qb3 {[%emt 0:00:34]} Kh8 {[%emt 0:00:
08]} 33. Qf3 {[%emt 0:00:10]} Qe6 {[%emt 0:00:18]} 34. e5 {[%emt 0:00:23]} Rcd8
{[%emt 0:00:27]} 35. Rxd8 {[%emt 0:00:07]} Rxd8 {[%emt 0:00:05]} 36. Rxd8+ {
[%emt 0:00:02]} Kh7 {[%emt 0:00:03]} 37. Qxf4 {[%emt 0:00:05]} g6 {[%emt 0:00:
21]} 38. Ra8 {[%emt 0:00:05]} a5 {[%emt 0:00:04]} 39. Ra7+ {[%emt 0:00:02]} Kg8
{[%emt 0:00:06]} 40. Qd4 {[%emt 0:00:06]} Qe8 {[%emt 0:00:12]} 41. Qf4 {
[%emt 0:00:03]} Kh8 {[%emt 0:00:07]} 42. Qxh6+ {[%emt 0:00:02]} Kg8 {[%emt 0:
00:02]} 43. Qg7# {[%emt 0:00:01] OnlyHungryKiwi won by checkmate} 1-0

[Event "Fast Chess"]
[Site "ChessKid.com"]
[Date "2020.04.06"]
[Round "2"]
[White "Hessenberger, Oliver"]
[Black "Steeg, Moritz"]
[Result "1-0"]
[ECO "C49"]
[WhiteElo "1097"]
[BlackElo "1075"]
[PlyCount "27"]
[EventDate "2020.??.??"]
[TimeControl "600"]
[WhiteClock "0:08:55"]
[BlackClock "0:08:57"]

1. e4 {[%emt 0:00:00]} e5 {[%emt 0:00:03]} 2. Nf3 {[%emt 0:00:01]} Nc6 {
[%emt 0:00:05]} 3. Nc3 {[%emt 0:00:03]} Nf6 {[%emt 0:00:02]} 4. Bb5 {[%emt 0:
00:01]} Bb4 {[%emt 0:00:03]} 5. Bxc6 {[%emt 0:00:01]} dxc6 {[%emt 0:00:02]} 6.
Nxe5 {[%emt 0:00:05]} Bxc3 {[%emt 0:00:05]} 7. bxc3 {[%emt 0:00:11]} Bg4 {
[%emt 0:00:09]} 8. Nxg4 {[%emt 0:00:08]} Nxg4 {[%emt 0:00:01]} 9. Qxg4 {
[%emt 0:00:02]} Qf6 {[%emt 0:00:11]} 10. Bb2 {[%emt 0:00:07]} O-O {[%emt 0:00:
07]} 11. Rb1 {[%emt 0:00:09]} Rfe8 {[%emt 0:00:06]} 12. c4 {[%emt 0:00:04]} Re5
{[%emt 0:00:06]} 13. Bxe5 {[%emt 0:00:06]} Qe7 {[%emt 0:00:06]} 14. Qxg7# {
[%emt 0:00:05] VastMellowGhost won by checkmate} 1-0

[Event "Fast Chess"]
[Site "ChessKid.com"]
[Date "2020.04.06"]
[Round "3"]
[White "Dai, Lana"]
[Black "Sasse, Gabriel"]
[Result "1-0"]
[ECO "C50"]
[WhiteElo "1228"]
[BlackElo "1272"]
[PlyCount "141"]
[EventDate "2020.??.??"]
[TimeControl "600"]
[WhiteClock "0:05:16"]
[BlackClock "0:00:25"]

1. e4 {[%emt 0:00:00]} e5 {[%emt 0:00:01]} 2. Nc3 {[%emt 0:00:05]} Nc6 {
[%emt 0:00:00]} 3. Bc4 {[%emt 0:00:03]} Nf6 {[%emt 0:00:02]} 4. Nf3 {[%emt 0:
00:02]} Bc5 {[%emt 0:00:01]} 5. d3 {[%emt 0:00:02]} h6 {[%emt 0:00:02]} 6. Nd5
{[%emt 0:00:08]} Nxd5 {[%emt 0:00:03]} 7. exd5 {[%emt 0:00:02]} Ne7 {[%emt 0:
00:02]} 8. Nxe5 {[%emt 0:00:05]} O-O {[%emt 0:00:09]} 9. d4 {[%emt 0:00:07]}
Bb6 {[%emt 0:00:04]} 10. Bf4 {[%emt 0:00:11]} d6 {[%emt 0:00:03]} 11. Nd3 {
[%emt 0:00:37]} Nf5 {[%emt 0:00:03]} 12. c3 {[%emt 0:00:11]} Nxd4 {[%emt 0:00:
06]} 13. cxd4 {[%emt 0:00:04]} Bxd4 {[%emt 0:00:01]} 14. O-O {[%emt 0:00:12]}
Qf6 {[%emt 0:00:06]} 15. Rb1 {[%emt 0:00:28]} Qg6 {[%emt 0:00:02]} 16. Qe2 {
[%emt 0:00:24]} Bh3 {[%emt 0:00:05]} 17. g3 {[%emt 0:00:21]} Bxf1 {[%emt 0:00:
02]} 18. Qxf1 {[%emt 0:00:02]} Rae8 {[%emt 0:00:14]} 19. Bb5 {[%emt 0:00:14]}
Rc8 {[%emt 0:00:06]} 20. Bc4 {[%emt 0:00:20]} Rce8 {[%emt 0:00:14]} 21. Bb5 {
[%emt 0:00:03]} Rd8 {[%emt 0:00:04]} 22. Be3 {[%emt 0:00:20]} Bxe3 {[%emt 0:00:
04]} 23. fxe3 {[%emt 0:00:01]} Qg5 {[%emt 0:00:06]} 24. Re1 {[%emt 0:00:10]}
Rde8 {[%emt 0:00:03]} 25. Qf3 {[%emt 0:00:22]} Rd8 {[%emt 0:00:11]} 26. h4 {
[%emt 0:00:13]} Qg6 {[%emt 0:00:05]} 27. h5 {[%emt 0:00:10]} Qg5 {[%emt 0:00:
04]} 28. g4 {[%emt 0:00:08]} Qh4 {[%emt 0:00:05]} 29. Kg2 {[%emt 0:00:13]} Qf6
{[%emt 0:00:17]} 30. Qxf6 {[%emt 0:00:10]} gxf6 {[%emt 0:00:02]} 31. Rf1 {
[%emt 0:00:03]} Rde8 {[%emt 0:00:06]} 32. Re1 {[%emt 0:00:32]} c6 {[%emt 0:00:
04]} 33. dxc6 {[%emt 0:00:03]} bxc6 {[%emt 0:00:01]} 34. Bxc6 {[%emt 0:00:02]}
Rc8 {[%emt 0:00:01]} 35. Ba4 {[%emt 0:00:07]} Rfd8 {[%emt 0:00:09]} 36. e4 {
[%emt 0:00:04]} d5 {[%emt 0:00:02]} 37. e5 {[%emt 0:00:06]} fxe5 {[%emt 0:00:
03]} 38. Rxe5 {[%emt 0:00:15]} d4 {[%emt 0:00:13]} 39. g5 {[%emt 0:00:12]} hxg5
{[%emt 0:00:04]} 40. Rxg5+ {[%emt 0:00:03]} Kh7 {[%emt 0:00:01]} 41. Rf5 {
[%emt 0:00:11]} Kg7 {[%emt 0:00:04]} 42. Rg5+ {[%emt 0:00:13]} Kh6 {[%emt 0:00:
03]} 43. Rf5 {[%emt 0:00:05]} Rc4 {[%emt 0:00:06]} 44. b3 {[%emt 0:00:09]} Rc2+
{[%emt 0:00:02]} 45. Kf3 {[%emt 0:00:02]} Rxa2 {[%emt 0:00:02]} 46. Ne5 {
[%emt 0:00:18]} Ra1 {[%emt 0:00:05]} 47. Nxf7+ {[%emt 0:00:03]} Kg7 {[%emt 0:
00:04]} 48. Nxd8 {[%emt 0:00:05]} Rf1+ {[%emt 0:00:02]} 49. Ke4 {[%emt 0:00:05]
} Rxf5 {[%emt 0:00:03]} 50. Kxf5 {[%emt 0:00:02]} Kh6 {[%emt 0:00:03]} 51. Kg4
{[%emt 0:00:12]} d3 {[%emt 0:00:02]} 52. b4 {[%emt 0:00:04]} a6 {[%emt 0:00:02]
} 53. Nf7+ {[%emt 0:00:12]} Kh7 {[%emt 0:00:01]} 54. Kg5 {[%emt 0:00:04]} Kg7 {
[%emt 0:00:02]} 55. Ne5 {[%emt 0:00:04]} Kh7 {[%emt 0:00:02]} 56. h6 {[%emt 0:
00:06]} d2 {[%emt 0:00:03]} 57. Bc2+ {[%emt 0:00:13]} Kh8 {[%emt 0:00:04]} 58.
Kg6 {[%emt 0:00:02]} d1=Q {[%emt 0:00:09]} 59. Bxd1 {[%emt 0:00:03]} Kg8 {
[%emt 0:00:04]} 60. Bb3+ {[%emt 0:00:07]} Kf8 {[%emt 0:00:02]} 61. h7 {[%emt 0:
00:01]} Ke7 {[%emt 0:00:04]} 62. h8=Q {[%emt 0:00:02]} Kd6 {[%emt 0:00:02]} 63.
Qf6+ {[%emt 0:00:02]} Kc7 {[%emt 0:00:06]} 64. Kf5 {[%emt 0:00:03]} Kb7 {
[%emt 0:00:05]} 65. Nd3 {[%emt 0:00:02]} Kc7 {[%emt 0:00:01]} 66. Ke5 {[%emt 0:
00:01]} Kd7 {[%emt 0:00:01]} 67. Qd6+ {[%emt 0:00:02]} Kc8 {[%emt 0:00:03]} 68.
Qe7 {[%emt 0:00:02]} Kb8 {[%emt 0:00:03]} 69. Kd6 {[%emt 0:00:01]} a5 {[%emt 0:
00:01]} 70. Kc6 {[%emt 0:00:02]} axb4 {[%emt 0:00:03]} 71. Qb7# {[%emt 0:00:02]
TopBrownCave won by checkmate} 1-0

[Event "Fast Chess"]
[Site "ChessKid.com"]
[Date "2020.04.06"]
[Round "3"]
[White "Li, Patrick"]
[Black "Li, Tobias"]
[Result "0-1"]
[ECO "C57"]
[WhiteElo "924"]
[BlackElo "1223"]
[PlyCount "48"]
[EventDate "2020.??.??"]
[TimeControl "600"]
[WhiteClock "0:08:34"]
[BlackClock "0:07:20"]

1. e4 {[%emt 0:00:00]} e5 {[%emt 0:00:02]} 2. Nf3 {[%emt 0:00:01]} Nc6 {
[%emt 0:00:01]} 3. Nc3 {[%emt 0:00:00]} Nf6 {[%emt 0:00:02]} 4. Bc4 {[%emt 0:
00:03]} Bc5 {[%emt 0:00:02]} 5. Ng5 {[%emt 0:00:03]} O-O {[%emt 0:00:01]} 6.
Nxf7 {[%emt 0:00:01]} Rxf7 {[%emt 0:00:02]} 7. Bxf7+ {[%emt 0:00:01]} Kxf7 {
[%emt 0:00:02]} 8. O-O {[%emt 0:00:01]} Kg8 {[%emt 0:00:04]} 9. h3 {[%emt 0:00:
00]} d6 {[%emt 0:00:03]} 10. Nd5 {[%emt 0:00:06]} Nxd5 {[%emt 0:00:03]} 11.
exd5 {[%emt 0:00:03]} Nb4 {[%emt 0:00:03]} 12. c4 {[%emt 0:00:11]} Bf5 {
[%emt 0:00:05]} 13. Qh5 {[%emt 0:00:04]} Bg6 {[%emt 0:00:08]} 14. Qg4 {[%emt 0:
00:07]} Nc2 {[%emt 0:00:06]} 15. Rb1 {[%emt 0:00:06]} Ne3 {[%emt 0:00:08]} 16.
Qf3 {[%emt 0:00:06]} Nxf1 {[%emt 0:00:03]} 17. Kxf1 {[%emt 0:00:03]} Bxb1 {
[%emt 0:00:02]} 18. Qg4 {[%emt 0:00:16]} Qf6 {[%emt 0:00:05]} 19. Qg3 {[%emt 0:
00:16]} Bxa2 {[%emt 0:00:06]} 20. d3 {[%emt 0:00:10]} Bb1 {[%emt 0:00:05]} 21.
Bh6 {[%emt 0:00:08]} Qxh6 {[%emt 0:00:06]} 22. Qg4 {[%emt 0:00:18]} Qg6 {
[%emt 0:00:01]} 23. Qd1 {[%emt 0:00:29]} Bxd3+ {[%emt 0:00:05]} 24. Ke1 {
[%emt 0:00:07]} Qf6 {[%emt 0:00:02] OnlyHungryKiwi won by resignation} 0-1